fUST/lending_fUST_20250110
["ID","MTS","AMOUNT","RATE_DAILY","PERIOD"]
[348345320,1736458237328,-500.0,0.00020532,3]
[348345323,1736458237341,-500.0,0.00020532,3]
[348345325,1736458237355,-500.0,0.00020532,3]
[348345326,1736458237368,-500.0,0.00020532,3]
[348345327,1736458237381,-500.0,0.00020532,3]
[348345328,1736458237397,-500.0,0.00020532,3]
[348345329,1736458237412,-500.0,0.00020532,3]
[348345330,1736458237426,-221.95616893,0.00020532,3]
[348345331,1736458237440,-500.0,0.00020532,3]
[348345332,1736458237452,-500.0,0.00020532,3]
[348345333,1736458237466,-500.0,0.00020532,3]
[348345334,1736458237480,-500.0,0.00020532,3]
[348345335,1736458237494,-500.0,0.00020532,3]
[348345336,1736458237508,-500.0,0.00020532,3]
[348345337,1736458237519,-500.0,0.00020532,3]
[348345338,1736458237530,-500.0,0.00020532,3]
[348345339,1736458237542,-293.55287669,0.00020532,3]
[348345340,1736458237554,-500.0,0.00020532,3]
[348345341,1736458237569,-301.91623775,0.00020532,3]
[348345343,1736458237582,-500.0,0.00020532,3]
[348345345,1736458237594,-500.0,0.00020532,3]
[348345348,1736458237605,-500.0,0.00020532,3]
[348345350,1736458237616,-500.0,0.00020532,3]
[348345352,1736458237629,-500.0,0.00020532,3]
[348345354,1736458237642,-500.0,0.00020532,3]
[348345356,1736458237653,-593.09963131,0.00020532,3]
[348345358,1736458237663,-500.0,0.00020532,3]
[348345361,1736458237677,-500.0,0.00020532,3]
[348345364,1736458237690,-500.0,0.00020532,3]
[348345367,1736458237702,-500.0,0.00020532,3]
[348345370,1736458237715,-500.0,0.00020532,3]
[348345372,1736458237728,-500.0,0.00020532,3]
[348345375,1736458237740,-500.0,0.00020532,3]
[348345378,1736458237751,-500.0,0.00020532,3]
[348345382,1736458237762,-500.0,0.00020532,3]
[348345384,1736458237773,-500.0,0.00020532,3]
[348345386,1736458237784,-500.0,0.00020532,3]
[348345388,1736458237795,-500.0,0.00020532,3]
[348345391,1736458237807,-500.0,0.00020532,3]
[348345394,1736458237818,-500.0,0.00020532,3]
[348345396,1736458237830,-500.0,0.00020532,3]
[348345398,1736458237843,-500.0,0.00020532,3]
[348345401,1736458237870,-500.0,0.00020532,3]
[348345403,1736458237881,-500.0,0.00020532,3]
[348345405,1736458237892,-500.0,0.00020532,3]
[348345407,1736458237905,-500.0,0.00020532,3]
[348345409,1736458237917,-500.0,0.00020532,3]
[348345411,1736458237928,-500.0,0.00020532,3]
[348345413,1736458237940,-500.0,0.00020532,3]
[348345416,1736458237952,-500.0,0.00020532,3]
[348345418,1736458237964,-500.0,0.00020532,3]
[348345420,1736458237976,-447.27566104,0.00020532,3]
[348345422,1736458237987,-500.0,0.00020532,3]
[348345424,1736458237999,-509.12611066,0.00020532,3]
[348345427,1736458238011,-500.0,0.00020532,3]
[348345429,1736458238024,-500.0,0.00020532,3]
[348345431,1736458238036,-500.0,0.00020532,3]
[348345433,1736458238048,-500.0,0.00020532,3]
[348345435,1736458238061,-542.28048342,0.00020532,3]
[348345438,1736458238073,-500.0,0.00020532,3]
[348345440,1736458238085,-500.0,0.00020532,3]
[348345442,1736458238097,-500.0,0.00020532,3]
[348345444,1736458238110,-500.0,0.00020532,3]
[348345446,1736458238122,-500.0,0.00020532,3]
[348345460,1736458238236,-500.0,0.00020532,3]
[348345463,1736458238256,-500.0,0.00020532,3]
[348345465,1736458238266,-500.0,0.00020532,3]
[348345467,1736458238279,-500.0,0.00020532,3]
[348345469,1736458238290,-500.0,0.00020532,3]
[348345471,1736458238300,-500.0,0.00020532,3]
[348345473,1736458238310,-500.0,0.00020532,3]
[348345475,1736458238320,-500.0,0.00020532,3]
[348345477,1736458238330,-500.0,0.00020532,3]
[348345479,1736458238339,-500.0,0.00020532,3]
[348345481,1736458238364,-500.0,0.00020532,3]
[348345483,1736458238374,-500.0,0.00020532,3]
[348345485,1736458238384,-500.0,0.00020532,3]
[348345487,1736458238394,-500.0,0.00020532,3]
[348345489,1736458238404,-500.0,0.00020532,3]
[348345491,1736458238414,-500.0,0.00020532,3]
[348345493,1736458238424,-500.0,0.00020532,3]
[348345495,1736458238433,-500.0,0.00020532,3]
[348345497,1736458238444,-500.0,0.00020532,3]
[348345499,1736458238454,-9406.67,0.00020532,3]
[348345501,1736458238464,-500.0,0.00020532,3]
[348345503,1736458238474,-500.0,0.00020532,3]
[348345505,1736458238484,-500.0,0.00020532,3]
[348345507,1736458238493,-504.38980566,0.00020532,3]
[348345509,1736458238503,-500.0,0.00020532,3]
[348345511,1736458238512,-503.41745455,0.00020532,3]
[348345513,1736458238522,-500.0,0.00020532,3]
[348345515,1736458238532,-500.0,0.00020532,3]
[348345517,1736458238542,-500.0,0.00020532,3]
[348345519,1736458238552,-500.0,0.00020532,3]
[348345521,1736458238562,-500.0,0.00020532,3]
[348345523,1736458238572,-500.0,0.00020532,3]
[348345525,1736458238582,-573.54837292,0.00020532,3]
[348345527,1736458238592,-500.0,0.00020532,3]
[348345529,1736458238602,-500.0,0.00020532,3]
[348345531,1736458238612,-500.0,0.00020532,3]
[348345533,1736458238621,-500.0,0.00020532,3]
[348345535,1736458238631,-500.0,0.00020532,3]
[348345537,1736458238642,-500.0,0.00020532,3]
[348345539,1736458238652,-500.0,0.00020532,3]
[348345541,1736458238662,-294.30880783,0.00020532,3]
[348345543,1736458238672,-500.0,0.00020532,3]
[348345545,1736458238682,-500.0,0.00020532,3]
[348345547,1736458238691,-500.0,0.00020532,3]
[348345549,1736458238702,-500.0,0.00020532,3]
[348345551,1736458238711,-500.0,0.00020532,3]
[348345552,1736458238720,-500.0,0.00020532,3]
[348345554,1736458238729,-500.0,0.00020532,3]
[348345557,1736458238740,-500.0,0.00020532,3]
[348345559,1736458238751,-500.0,0.00020532,3]
[348345560,1736458238762,-500.0,0.00020532,3]
[348345562,1736458238772,-500.0,0.00020532,3]
[348345564,1736458238783,-500.0,0.00020532,3]
[348345566,1736458238793,-500.0,0.00020532,3]
[348345568,1736458238805,-151.0,0.00020532,2]
[348345571,1736458238817,-500.0,0.00020532,3]
[348345573,1736458238828,-500.0,0.00020532,3]
[348345574,1736458238838,-500.0,0.00020532,3]
[348345576,1736458238847,-500.0,0.00020532,3]
[348345579,1736458238857,-500.0,0.00020532,3]
[348345581,1736458238869,-151.0,0.00020532,2]
[348345583,1736458238881,-191.87463107,0.00020532,3]
[348345586,1736458238917,-308.12536893,0.00020532,3]
[348345588,1736458238927,-676.69,0.00020534,3]
[348345590,1736458238936,-351.7151986,0.00020534,3]
[348345728,1736458240361,-500.0,0.00020257,3]
[348345730,1736458240371,-500.0,0.00020257,3]
[348345732,1736458240381,-500.0,0.00020258,3]
[348345734,1736458240391,-500.0,0.00020531,3]
[348345736,1736458240406,-253.1448014,0.00020534,3]
[348345738,1736458240417,-500.0,0.00020534,3]
[348345740,1736458240427,-500.0,0.00020534,3]
[348345742,1736458240436,-500.0,0.00020534,3]
[348345744,1736458240446,-500.0,0.00020534,3]
[348345746,1736458240455,-628.82,0.00020534,3]
[348345748,1736458240464,-500.0,0.00020534,3]
[348345750,1736458240474,-500.0,0.00020534,3]
[348345752,1736458240483,-500.0,0.00020534,3]
[348345754,1736458240492,-500.0,0.00020534,3]
[348345756,1736458240502,-500.0,0.00020534,3]
[348345758,1736458240512,-500.0,0.00020534,3]
[348345760,1736458240521,-500.0,0.00020534,3]
[348345762,1736458240531,-500.0,0.00020534,3]
[348345764,1736458240541,-1117.59989459,0.00020535,3]
[348345766,1736458240552,-927.16010541,0.00020535,3]
[348345768,1736458240562,-398.27085139,0.00020535,3]
[348345771,1736458240573,-101.72914861,0.00020535,3]
[348345773,1736458240583,-500.0,0.00020535,3]
[348345775,1736458240592,-500.0,0.00020535,3]
[348345777,1736458240602,-76.29136783,0.00020536,3]
[348345779,1736458240614,-1739.92863217,0.00020536,3]
[348345781,1736458240624,-500.0,0.00020547,3]
[348345783,1736458240634,-10956.35292248,0.00020552,2]
[348345785,1736458240644,-500.0,0.00020573,2]
[348345787,1736458240659,-512.80873587,0.00020573,2]
[348345789,1736458240670,-500.0,0.00020573,2]
[348345791,1736458240680,-530.47837236,0.00020573,2]
[348345793,1736458240689,-319.88409769,0.00020573,2]
[348345795,1736458240698,-500.0,0.00020573,2]
[348345797,1736458240708,-613.12353203,0.00020601,2]
[348345799,1736458240717,-25151.00243321,0.00020804,5]
[348345801,1736458240727,-5543.74624078,0.00020804,5]
[348345803,1736458240736,-500.0,0.00020804,3]
[348345805,1736458240746,-768.18,0.00020804,3]
[348345807,1736458240755,-500.0,0.00020804,3]
[348345809,1736458240765,-500.0,0.00020804,3]
[348345811,1736458240774,-500.0,0.00020805,3]
[348345813,1736458240784,-604.96,0.00020805,3]
[348345815,1736458240793,-500.0,0.00020805,3]
[348345817,1736458240803,-500.0,0.00020805,3]
[348345819,1736458240813,-500.0,0.00020805,3]
[348345821,1736458240822,-500.0,0.00020805,3]
[348345823,1736458240832,-500.0,0.00020805,3]
[348345825,1736458240841,-500.0,0.00020805,3]
[348345827,1736458240851,-500.0,0.00020805,3]
[348345829,1736458240861,-500.0,0.00020805,3]
[348345831,1736458240871,-500.0,0.00020805,3]
[348345833,1736458240880,-500.0,0.00020805,3]
[348345835,1736458240889,-510.1,0.00020805,3]
[348345837,1736458240904,-500.0,0.00020805,3]
[348345839,1736458240914,-500.0,0.00020805,3]
[348345841,1736458240923,-500.0,0.00020805,3]
[348345843,1736458240933,-537.08,0.00020805,2]
[348345845,1736458240942,-500.0,0.00020805,3]
[348345847,1736458240951,-1356.66,0.00020805,3]
[348345849,1736458240960,-500.0,0.00020805,3]
[348345851,1736458240969,-500.0,0.00020805,3]
[348345853,1736458240978,-500.0,0.00020805,3]
[348345855,1736458240988,-500.0,0.00020805,3]
[348345857,1736458240997,-500.0,0.00020805,3]
[348345859,1736458241007,-500.0,0.00020805,3]
[348345861,1736458241017,-500.0,0.00020805,3]
[348345863,1736458241028,-500.0,0.00020805,3]
[348345865,1736458241037,-821.46,0.00020805,3]
[348345867,1736458241047,-500.0,0.00020805,3]
[348345869,1736458241056,-500.0,0.00020805,3]
[348345871,1736458241066,-500.0,0.00020805,3]
[348345873,1736458241076,-500.0,0.00020805,3]
[348345875,1736458241086,-584.48,0.00020805,3]
[348345877,1736458241096,-500.0,0.00020805,3]
[348345879,1736458241106,-575.39,0.00020805,3]
[348345881,1736458241116,-500.0,0.00020805,3]
[348345883,1736458241126,-500.0,0.00020806,3]
[348345885,1736458241136,-500.0,0.00020806,3]
[348345887,1736458241147,-500.0,0.00020806,3]
[348345889,1736458241156,-500.0,0.00020806,3]
[348345891,1736458241166,-500.0,0.00020806,3]
[348345893,1736458241175,-158.4229568,0.00020806,3]
[348345895,1736458241185,-500.0,0.00020806,3]
[348345897,1736458241194,-500.0,0.00020806,3]
[348345899,1736458241203,-500.0,0.00020806,3]
[348345901,1736458241213,-500.0,0.00020806,3]
[348345903,1736458241223,-500.0,0.00020806,3]
[348345905,1736458241232,-500.0,0.00020806,3]
[348345907,1736458241242,-239.04128221,0.00020806,3]
[348345909,1736458241251,-500.0,0.00020806,3]
[348345911,1736458241259,-500.0,0.00020806,3]
[348345913,1736458241269,-500.0,0.00020806,3]
[348345915,1736458241280,-500.0,0.00020806,3]
[348345917,1736458241291,-500.0,0.00020806,3]
[348345928,1736458241385,-500.0,0.00020806,3]
[348345930,1736458241399,-500.0,0.00020806,3]
[348345932,1736458241410,-219.02351462,0.00020806,3]
[348345934,1736458241420,-500.0,0.00020806,3]
[348345936,1736458241430,-500.0,0.00020806,3]
[348345938,1736458241439,-500.0,0.00020806,3]
[348345940,1736458241448,-500.0,0.00020806,3]
[348345942,1736458241458,-500.0,0.00020806,3]
[348345944,1736458241467,-500.0,0.00020806,3]
[348345946,1736458241476,-500.0,0.00020806,3]
[348345948,1736458241485,-536.04557566,0.00020806,3]
[348345950,1736458241495,-500.0,0.00020806,3]
[348345952,1736458241504,-500.0,0.00020806,3]
[348345954,1736458241514,-500.0,0.00020806,3]
[348345956,1736458241523,-500.0,0.00020806,3]
[348345958,1736458241533,-500.0,0.00020806,3]
[348345960,1736458241543,-648.56,0.00020806,3]
[348345962,1736458241552,-500.0,0.00020806,3]
[348345964,1736458241561,-500.0,0.00020806,3]
[348345966,1736458241570,-426.1562905,0.00020806,3]
[348345968,1736458241580,-500.0,0.00020806,3]
[348345970,1736458241590,-388.77233549,0.00020806,3]
[348345972,1736458241599,-500.0,0.00020806,3]
[348345974,1736458241610,-500.0,0.00020806,3]
[348345976,1736458241620,-426.4439211,0.00020806,3]
[348345978,1736458241629,-151.0,0.00020806,2]
[348345980,1736458241639,-500.0,0.00020806,3]
[348345982,1736458241650,-503.13185661,0.00020806,3]
[348345984,1736458241659,-480.83110894,0.00020806,3]
[348345986,1736458241668,-500.0,0.00020806,3]
[348345988,1736458241677,-500.0,0.00020806,3]
[348345990,1736458241687,-500.0,0.00020806,3]
[348345992,1736458241696,-151.0,0.00020806,2]
[348345994,1736458241706,-161.970209,0.00020807,2]
[348345996,1736458241715,-676.69,0.00020808,3]
[348345998,1736458241725,-604.86,0.00020808,3]
[348346000,1736458241735,-500.0,0.00020808,3]
[348346002,1736458241745,-500.0,0.00020808,3]
[348346004,1736458241755,-500.0,0.00020808,3]
[348346006,1736458241765,-500.0,0.00020808,3]
[348346008,1736458241775,-500.0,0.00020808,3]
[348346010,1736458241785,-500.0,0.00020808,3]
[348346012,1736458241794,-500.0,0.00020808,3]
[348346014,1736458241804,-2044.76,0.00020809,3]
[348346016,1736458241814,-500.0,0.00020809,3]
[348346018,1736458241824,-1816.22,0.0002081,3]
[348346020,1736458241833,-210.056199,0.00020894,2]
[348346022,1736458241843,-210.056199,0.00020894,2]
[348346024,1736458241853,-166.048689,0.00020894,2]
[348346027,1736458241862,-10956.35292249,0.00020974,2]
[348346029,1736458241872,-2348.02701822,0.00021,3]
[348346031,1736458241882,-613.12353203,0.00021045,2]
[348346033,1736458241892,-768.18,0.00021078,3]
[348346035,1736458241903,-500.0,0.00021078,3]
[348346037,1736458241912,-500.0,0.00021079,3]
[348346039,1736458241922,-500.0,0.00021079,3]
[348346041,1736458241932,-500.0,0.00021079,3]
[348346043,1736458241942,-500.0,0.00021079,3]
[348346045,1736458241951,-500.0,0.00021079,3]
[348346047,1736458241961,-500.0,0.00021079,3]
[348346049,1736458241970,-500.0,0.00021079,3]
[348346051,1736458241979,-537.08,0.00021079,2]
[348346053,1736458241988,-500.0,0.00021079,3]
[348346055,1736458241998,-1356.66,0.00021079,3]
[348346057,1736458242007,-164.92,0.00021079,3]
[348346059,1736458242017,-500.0,0.00021079,3]
[348346061,1736458242027,-199.1,0.00021079,3]
[348346063,1736458242036,-500.0,0.00021079,3]
[348346065,1736458242046,-821.46,0.00021079,3]
[348346067,1736458242056,-500.0,0.00021079,3]
[348346069,1736458242065,-500.0,0.00021079,3]
[348346071,1736458242075,-500.0,0.00021079,3]
[348346073,1736458242084,-565.59,0.00021079,3]
[348346075,1736458242093,-575.39,0.00021079,3]
[348346077,1736458242102,-187.19468,0.00021079,2]
[348346079,1736458242111,-605.72,0.0002108,3]
[348346081,1736458242121,-500.0,0.0002108,3]
[348346083,1736458242130,-430.61,0.0002108,3]
[348346085,1736458242140,-500.0,0.0002108,3]
[348346087,1736458242152,-500.0,0.0002108,3]
[348346089,1736458242162,-500.0,0.0002108,3]
[348346091,1736458242171,-406.84,0.0002108,3]
[348346093,1736458242180,-676.69,0.00021082,3]
[348346095,1736458242189,-604.86,0.00021082,3]
[348346097,1736458242199,-500.0,0.00021082,3]
[348346099,1736458242209,-500.0,0.00021082,3]
[348346101,1736458242218,-500.0,0.00021082,3]
[348346103,1736458242227,-500.0,0.00021082,3]
[348346105,1736458242236,-168.3134617,0.00021083,2]
[348346107,1736458242245,-2044.76,0.00021083,3]
[348346109,1736458242254,-500.0,0.00021083,3]
[348346111,1736458242264,-1816.22,0.00021084,3]
[348346113,1736458242276,-151.0,0.00021089,2]
[348346115,1736458242285,-3500.0,0.000213,3]
[348346117,1736458242295,-1167.8090467,0.0002131,2]
[348346176,1736458243459,-500.0,0.00020257,3]
[348346177,1736458243469,-500.0,0.00020258,3]
[348346178,1736458243479,-500.0,0.00020531,3]
[348346179,1736458243489,-2126.61355938,0.0002131,2]
[348346180,1736458243498,-768.18,0.00021352,3]
[348346181,1736458243509,-500.0,0.00021352,3]
[348346182,1736458243518,-105.20644062,0.00021353,3]
[348346256,1736458309074,394.61647812,0.00025,120]
[348346259,1736458796628,163.23866,0.00013973,2]
[348346260,1736459230147,-300.0,0.00018899,2]
[348346261,1736459230169,-533.79959626,0.00018899,2]
[348346262,1736459238116,-1034.11495783,0.00018899,2]
[348346263,1736459241113,-2038.08544591,0.00018899,2]
[348346264,1736459241138,-161.97528821,0.00018899,2]
[348346265,1736459241160,-500.0,0.00018899,2]
[348346266,1736459241180,-503.32405284,0.00018899,2]
[348346267,1736459241202,-384.3507715,0.00018899,2]
[348346268,1736459241223,-3351.3143687,0.000189,7]
[348346269,1736459244089,-427.84600523,0.000189,7]
[348346272,1736459360126,-300.0,0.00018899,2]
[348346273,1736459360148,-190.0,0.000189,7]
[348346274,1736459360180,-68485.242,0.000189,7]
[348346316,1736459432678,-291.706,0.0001875,2]
[348346318,1736459432688,-300.0,0.00018899,2]
[348346320,1736459432697,-638.73945,0.000189,7]
[348346908,1736459438567,-8144.02167997,0.000189,7]
[348346920,1736459438671,-146.21427422,0.000189,7]
[348347105,1736459440660,-3450.14455125,0.000189,7]
[348347107,1736459440670,-500.0,0.00019178,2]
[348347109,1736459440680,-500.0,0.00019178,2]
[348347111,1736459440689,-779.29,0.00019178,2]
[348347113,1736459440699,-500.0,0.00019178,2]
[348347115,1736459440708,-500.0,0.00019178,2]
[348347117,1736459440717,-500.0,0.00019178,2]
[348347119,1736459440727,-164.499963,0.00019178,2]
[348347121,1736459440736,-500.0,0.00019452,3]
[348347123,1736459440746,-500.0,0.00019452,3]
[348347125,1736459440755,-378.86548575,0.00019452,3]
[348347395,1736459446499,-500.0,0.00019178,2]
[348347396,1736459446509,-400.42451425,0.00019452,3]
[348347397,1736459446518,-500.0,0.00019452,3]
[348347398,1736459446529,-500.0,0.00019452,3]
[348347399,1736459446538,-500.0,0.00019452,3]
[348347400,1736459446547,-500.0,0.00019452,3]
[348347401,1736459446558,-500.0,0.00019726,3]
[348347402,1736459446569,-1.07548564,0.00019726,3]
[348347403,1736459446581,-778.21451436,0.00019726,3]
[348347404,1736459446590,-500.0,0.00019726,3]
[348347405,1736459446599,-500.0,0.00019726,3]
[348347406,1736459446608,-500.0,0.00019726,3]
[348347407,1736459446618,-500.0,0.00019726,3]
[348347408,1736459446628,-4988.34448565,0.0002,5]
[348347409,1736459446648,-46496.11083123,0.0002,5]
[348347413,1736459446762,-500.0,0.0002,3]
[348347414,1736459446771,-779.29,0.0002,3]
[348347416,1736459446781,-500.0,0.0002,3]
[348347418,1736459446792,-500.0,0.0002,3]
[348347420,1736459446803,-500.0,0.0002,3]
[348347422,1736459446812,-500.0,0.0002,3]
[348347423,1736459446821,-496.64189252,0.00020155,2]
[348347424,1736459446831,-154.66,0.00020254,2]
[348347425,1736459446840,-500.0,0.00020254,3]
[348347427,1736459446850,-500.0,0.00020254,3]
[348347429,1736459446859,-500.0,0.00020254,3]
[348347431,1736459446869,-500.0,0.00020254,3]
[348347433,1736459446878,-500.0,0.00020254,3]
[348347435,1736459446887,-500.0,0.00020254,3]
[348347437,1736459446896,-500.0,0.00020254,3]
[348347438,1736459446905,-500.0,0.00020254,3]
[348347440,1736459446915,-500.0,0.00020254,3]
[348347442,1736459446924,-500.0,0.00020254,3]
[348347443,1736459446934,-500.0,0.00020254,3]
[348347444,1736459446944,-500.0,0.00020254,3]
[348347445,1736459446954,-279.22681415,0.00020254,3]
[348347447,1736459446963,-288.44,0.00020254,3]
[348347448,1736459446973,-500.0,0.00020254,3]
[348347449,1736459446982,-200.49962142,0.00020254,3]
[348347450,1736459446992,-381.54990175,0.00020254,3]
[348347451,1736459447002,-606.63985908,0.00020254,3]
[348347452,1736459447011,-500.0,0.00020254,3]
[348347453,1736459447021,-500.0,0.00020254,3]
[348347454,1736459447030,-500.0,0.00020254,3]
[348347455,1736459447039,-500.0,0.00020254,3]
[348347457,1736459447049,-500.0,0.00020254,3]
[348347458,1736459447059,-784.37,0.00020254,2]
[348347459,1736459447068,-500.0,0.00020254,3]
[348347460,1736459447077,-500.0,0.00020254,3]
[348347461,1736459447086,-531.09373918,0.00020254,3]
[348347462,1736459447097,-500.0,0.00020254,3]
[348347463,1736459447107,-1564.79,0.00020254,3]
[348347464,1736459447116,-500.0,0.00020254,3]
[348347465,1736459447125,-500.0,0.00020254,3]
[348347466,1736459447135,-500.0,0.00020254,3]
[348347467,1736459447148,-500.0,0.00020254,3]
[348347468,1736459447158,-500.0,0.00020254,3]
[348347469,1736459447168,-500.0,0.00020254,3]
[348347470,1736459447178,-237.9477663,0.00020254,3]
[348347471,1736459447187,-500.0,0.00020254,3]
[348347472,1736459447196,-500.0,0.00020254,3]
[348347473,1736459447205,-500.0,0.00020254,3]
[348347474,1736459447215,-500.0,0.00020254,3]
[348347475,1736459447226,-510.83626275,0.00020254,3]
[348347476,1736459447237,-500.0,0.00020254,3]
[348347477,1736459447248,-500.0,0.00020254,3]
[348347478,1736459447259,-500.0,0.00020254,3]
[348347479,1736459447268,-500.0,0.00020254,3]
[348347480,1736459447278,-500.0,0.00020254,3]
[348347481,1736459447287,-500.0,0.00020254,3]
[348347482,1736459447296,-500.0,0.00020254,3]
[348347483,1736459447308,-500.0,0.00020254,3]
[348347484,1736459447317,-500.0,0.00020254,3]
[348347485,1736459447326,-500.0,0.00020254,3]
[348347486,1736459447335,-500.0,0.00020254,3]
[348347487,1736459447344,-500.0,0.00020254,3]
[348347488,1736459447355,-500.0,0.00020254,3]
[348347489,1736459447366,-500.0,0.00020254,3]
[348347490,1736459447375,-500.0,0.00020254,3]
[348347491,1736459447385,-500.0,0.00020254,3]
[348347492,1736459447394,-500.0,0.00020254,3]
[348347493,1736459447404,-500.0,0.00020254,3]
[348347494,1736459447413,-500.0,0.00020254,3]
[348347495,1736459447424,-500.0,0.00020254,3]
[348347496,1736459447433,-500.0,0.00020254,3]
[348347497,1736459447444,-500.0,0.00020254,3]
[348347498,1736459447457,-721.24,0.00020254,3]
[348347499,1736459447467,-500.0,0.00020254,3]
[348347500,1736459447478,-500.0,0.00020254,3]
[348347501,1736459447489,-500.0,0.00020254,3]
[348347502,1736459447499,-501.76165185,0.00020254,3]
[348347503,1736459447509,-500.0,0.00020254,3]
[348347504,1736459447519,-500.0,0.00020254,3]
[348347505,1736459447529,-500.0,0.00020254,3]
[348347506,1736459447539,-500.0,0.00020254,3]
[348347507,1736459447549,-229.13629271,0.00020254,3]
[348347508,1736459447563,-500.0,0.00020254,3]
[348347509,1736459447572,-447.11600577,0.00020254,2]
[348347510,1736459447581,-500.0,0.00020254,3]
[348347511,1736459447590,-500.0,0.00020254,3]
[348347512,1736459447599,-500.0,0.00020254,3]
[348347513,1736459447609,-500.0,0.00020254,3]
[348347514,1736459447618,-171.814,0.00020255,2]
[348347515,1736459447627,-500.0,0.00020255,3]
[348347516,1736459447637,-500.0,0.00020255,3]
[348347517,1736459447646,-500.0,0.00020255,3]
[348347518,1736459447655,-500.0,0.00020255,3]
[348347519,1736459447664,-500.0,0.00020255,3]
[348347520,1736459447674,-500.0,0.00020255,3]
[348347521,1736459447684,-500.0,0.00020255,3]
[348347522,1736459447694,-500.0,0.00020255,3]
[348347523,1736459447704,-500.0,0.00020255,3]
[348347524,1736459447713,-500.0,0.00020255,3]
[348347525,1736459447723,-500.0,0.00020255,3]
[348347526,1736459447733,-500.0,0.00020255,3]
[348347527,1736459447743,-500.0,0.00020255,3]
[348347528,1736459447753,-500.0,0.00020255,3]
[348347529,1736459447762,-500.0,0.00020255,3]
[348347530,1736459447772,-500.0,0.00020255,3]
[348347531,1736459447782,-500.0,0.00020255,3]
[348347532,1736459447791,-500.0,0.00020255,3]
[348347533,1736459447800,-500.0,0.00020255,3]
[348347534,1736459447812,-500.0,0.00020255,3]
[348347535,1736459447821,-500.0,0.00020255,3]
[348347536,1736459447832,-500.0,0.00020255,3]
[348347537,1736459447841,-500.0,0.00020255,3]
[348347538,1736459447851,-500.0,0.00020255,3]
[348347539,1736459447860,-500.0,0.00020255,3]
[348347540,1736459447870,-500.0,0.00020255,3]
[348347541,1736459447879,-500.0,0.00020255,3]
[348347542,1736459447889,-500.0,0.00020255,3]
[348347543,1736459447899,-500.0,0.00020255,3]
[348347544,1736459447908,-500.0,0.00020255,3]
[348347545,1736459447917,-500.0,0.00020255,3]
[348347546,1736459447928,-500.0,0.00020255,3]
[348347547,1736459447938,-500.0,0.00020255,3]
[348347548,1736459447947,-582.4548313,0.00020255,3]
[348347549,1736459447956,-500.0,0.00020255,3]
[348347550,1736459447966,-500.0,0.00020255,3]
[348347551,1736459447975,-500.0,0.00020255,3]
[348347552,1736459447984,-500.0,0.00020255,3]
[348347553,1736459447993,-500.0,0.00020255,3]
[348347554,1736459448003,-500.0,0.00020255,3]